Workbook

Sheet Daten
B3: 243 | C3: 100753 | D3: 19010101 | E3: -96 | F3: 0 | G3: =E3/10 -> -9.6 | I3: =RIGHT(D3,2) & "." & MID(D3,5,2) & "." & LEFT(D3,4) -> 01.01.1901
B4: 243 | C4: 100753 | D4: 19010102 | E4: -129 | F4: 0 | G4: =E4/10 -> -12.9 | I4: =RIGHT(D4,2) & "." & MID(D4,5,2) & "." & LEFT(D4,4) -> 02.01.1901
B5: 243 | C5: 100753 | D5: 19010103 | E5: -195 | F5: 0 | G5: -19.5 | I5: 03.01.1901
B6: 243 | C6: 100753 | D6: 19010104 | E6: -208 | F6: 0 | G6: -20.8 | I6: 04.01.1901
B7: 243 | C7: 100753 | D7: 19010105 | E7: -212 | F7: 0 | G7: -21.2 | I7: 05.01.1901
B8: 243 | C8: 100753 | D8: 19010106 | E8: -138 | F8: 0 | G8: -13.8 | I8: 06.01.1901
B9: 243 | C9: 100753 | D9: 19010107 | E9: -116 | F9: 0 | G9: -11.6 | I9: 07.01.1901
B10: 243 | C10: 100753 | D10: 19010108 | E10: -68 | F10: 0 | G10: -6.8 | I10: 08.01.1901
B11: 243 | C11: 100753 | D11: 19010109 | E11: -39 | F11: 0 | G11: -3.9 | I11: 09.01.1901
B12: 243 | C12: 100753 | D12: 19010110 | E12: -77 | F12: 0 | G12: -7.7 | I12: 10.01.1901
B13: 243 | C13: 100753 | D13: 19010111 | E13: -80 | F13: 0 | G13: -8 | I13: 11.01.1901
B14: 243 | C14: 100753 | D14: 19010112 | E14: -98 | F14: 0 | G14: -9.8 | I14: 12.01.1901
B15: 243 | C15: 100753 | D15: 19010113 | E15: -74 | F15: 0 | G15: -7.4 | I15: 13.01.1901
B16: 243 | C16: 100753 | D16: 19010114 | E16: -45 | F16: 0 | G16: -4.5 | I16: 14.01.1901
B17: 243 | C17: 100753 | D17: 19010115 | E17: -51 | F17: 0 | G17: -5.1 | I17: 15.01.1901
B18: 243 | C18: 100753 | D18: 19010116 | E18: -48 | F18: 0 | G18: -4.8 | I18: 16.01.1901
B19: 243 | C19: 100753 | D19: 19010117 | E19: -27 | F19: 0 | G19: -2.7 | I19: 17.01.1901
B20: 243 | C20: 100753 | D20: 19010118 | E20: -37 | F20: 0 | G20: -3.7 | I20: 18.01.1901
B21: 243 | C21: 100753 | D21: 19010119 | E21: -28 | F21: 0 | G21: -2.8 | I21: 19.01.1901
B22: 243 | C22: 100753 | D22: 19010120 | E22: -73 | F22: 0 | G22: -7.3 | I22: 20.01.1901
B23: 243 | C23: 100753 | D23: 19010121 | E23: -84 | F23: 0 | G23: -8.4 | I23: 21.01.1901
B24: 243 | C24: 100753 | D24: 19010122 | E24: -11 | F24: 0 | G24: -1.1 | I24: 22.01.1901
B25: 243 | C25: 100753 | D25: 19010123 | E25: -4 | F25: 0 | G25: -0.4 | I25: 23.01.1901
B26: 243 | C26: 100753 | D26: 19010124 | E26: -1 | F26: 0 | G26: -0.1 | I26: 24.01.1901
B27: 243 | C27: 100753 | D27: 19010125 | E27: -61 | F27: 0 | G27: -6.1 | I27: 25.01.1901
B28: 243 | C28: 100753 | D28: 19010126 | E28: -114 | F28: 0 | G28: -11.4 | I28: 26.01.1901
B29: 243 | C29: 100753 | D29: 19010127 | E29: -66 | F29: 0 | G29: -6.6 | I29: 27.01.1901
B30: 243 | C30: 100753 | D30: 19010128 | E30: -111 | F30: 0 | G30: -11.1 | I30: 28.01.1901
B31: 243 | C31: 100753 | D31: 19010129 | E31: -153 | F31: 0 | G31: -15.3 | I31: 29.01.1901
B32: 243 | C32: 100753 | D32: 19010130 | E32: -180 | F32: 0 | G32: -18 | I32: 30.01.1901
B33: 243 | C33: 100753 | D33: 19010131 | E33: -159 | F33: 0 | G33: -15.9 | I33: 31.01.1901
B34: 243 | C34: 100753 | D34: 19010201 | E34: -112 | F34: 0 | G34: -11.2 | I34: 01.02.1901
B35: 243 | C35: 100753 | D35: 19010202 | E35: -151 | F35: 0 | G35: -15.1 | I35: 02.02.1901
B36: 243 | C36: 100753 | D36: 19010203 | E36: -126 | F36: 0 | G36: -12.6 | I36: 03.02.1901
B37: 243 | C37: 100753 | D37: 19010204 | E37: -110 | F37: 0 | G37: -11 | I37: 04.02.1901
B38: 243 | C38: 100753 | D38: 19010205 | E38: -112 | F38: 0 | G38: -11.2 | I38: 05.02.1901
B39: 243 | C39: 100753 | D39: 19010206 | E39: -144 | F39: 0 | G39: -14.4 | I39: 06.02.1901
B40: 243 | C40: 100753 | D40: 19010207 | E40: -157 | F40: 0 | G40: -15.7 | I40: 07.02.1901
B41: 243 | C41: 100753 | D41: 19010208 | E41: -148 | F41: 0 | G41: -14.8 | I41: 08.02.1901
B42: 243 | C42: 100753 | D42: 19010209 | E42: -136 | F42: 0 | G42: -13.6 | I42: 09.02.1901
B43: 243 | C43: 100753 | D43: 19010210 | E43: -148 | F43: 0 | G43: -14.8 | I43: 10.02.1901
B44: 243 | C44: 100753 | D44: 19010211 | E44: -157 | F44: 0 | G44: -15.7 | I44: 11.02.1901
B45: 243 | C45: 100753 | D45: 19010212 | E45: -210 | F45: 0 | G45: -21 | I45: 12.02.1901
B46: 243 | C46: 100753 | D46: 19010213 | E46: -207 | F46: 0 | G46: -20.7 | I46: 13.02.1901
B47: 243 | C47: 100753 | D47: 19010214 | E47: -246 | F47: 0 | G47: -24.6 | I47: 14.02.1901
B48: 243 | C48: 100753 | D48: 19010215 | E48: -252 | F48: 0 | G48: -25.2 | I48: 15.02.1901
B49: 243 | C49: 100753 | D49: 19010216 | E49: -196 | F49: 0 | G49: -19.6 | I49: 16.02.1901
B50: 243 | C50: 100753 | D50: 19010217 | E50: -168 | F50: 0 | G50: -16.8 | I50: 17.02.1901
B51: 243 | C51: 100753 | D51: 19010218 | E51: -194 | F51: 0 | G51: -19.4 | I51: 18.02.1901
B52: 243 | C52: 100753 | D52: 19010219 | E52: -222 | F52: 0 | G52: -22.2 | I52: 19.02.1901
B53: 243 | C53: 100753 | D53: 19010220 | E53: -206 | F53: 0 | G53: -20.6 | I53: 20.02.1901
B54: 243 | C54: 100753 | D54: 19010221 | E54: -159 | F54: 0 | G54: -15.9 | I54: 21.02.1901
B55: 243 | C55: 100753 | D55: 19010222 | E55: -133 | F55: 0 | G55: -13.3 | I55: 22.02.1901
B56: 243 | C56: 100753 | D56: 19010223 | E56: -139 | F56: 0 | G56: -13.9 | I56: 23.02.1901
B57: 243 | C57: 100753 | D57: 19010224 | E57: -129 | F57: 0 | G57: -12.9 | I57: 24.02.1901
B58: 243 | C58: 100753 | D58: 19010225 | E58: -107 | F58: 0 | G58: -10.7 | I58: 25.02.1901
B59: 243 | C59: 100753 | D59: 19010226 | E59: -59 | F59: 0 | G59: -5.9 | I59: 26.02.1901
B60: 243 | C60: 100753 | D60: 19010227 | E60: -81 | F60: 0 | G60: -8.1 | I60: 27.02.1901
B61: 243 | C61: 100753 | D61: 19010228 | E61: -76 | F61: 0 | G61: -7.6 | I61: 28.02.1901
B62: 243 | C62: 100753 | D62: 19010301 | E62: -66 | F62: 0 | G62: -6.6 | I62: 01.03.1901
B63: 243 | C63: 100753 | D63: 19010302 | E63: -73 | F63: 0 | G63: -7.3 | I63: 02.03.1901
B64: 243 | C64: 100753 | D64: 19010303 | E64: -83 | F64: 0 | G64: -8.3 | I64: 03.03.1901
B65: 243 | C65: 100753 | D65: 19010304 | E65: -115 | F65: 0 | G65: -11.5 | I65: 04.03.1901
B66: 243 | C66: 100753 | D66: 19010305 | E66: -72 | F66: 0 | G66: -7.2 | I66: 05.03.1901
B67: 243 | C67: 100753 | D67: 19010306 | E67: -91 | F67: 0 | G67: -9.1 | I67: 06.03.1901
B68: 243 | C68: 100753 | D68: 19010307 | E68: -133 | F68: 0 | G68: =E68/10 -> -13.3 | I68: =RIGHT(D68,2) & "." & MID(D68,5,2) & "." & LEFT(D68,4) -> 07.03.1901
B69: 243 | C69: 100753 | D69: 19010308 | E69: -123 | F69: 0 | G69: -12.3 | I69: 08.03.1901
B70: 243 | C70: 100753 | D70: 19010309 | E70: -81 | F70: 0 | G70: -8.1 | I70: 09.03.1901
B71: 243 | C71: 100753 | D71: 19010310 | E71: -59 | F71: 0 | G71: -5.9 | I71: 10.03.1901
B72: 243 | C72: 100753 | D72: 19010311 | E72: -82 | F72: 0 | G72: -8.2 | I72: 11.03.1901
B73: 243 | C73: 100753 | D73: 19010312 | E73: -111 | F73: 0 | G73: -11.1 | I73: 12.03.1901
B74: 243 | C74: 100753 | D74: 19010313 | E74: -95 | F74: 0 | G74: -9.5 | I74: 13.03.1901
B75: 243 | C75: 100753 | D75: 19010314 | E75: -77 | F75: 0 | G75: -7.7 | I75: 14.03.1901
B76: 243 | C76: 100753 | D76: 19010315 | E76: -61 | F76: 0 | G76: -6.1 | I76: 15.03.1901
B77: 243 | C77: 100753 | D77: 19010316 | E77: -64 | F77: 0 | G77: -6.4 | I77: 16.03.1901
B78: 243 | C78: 100753 | D78: 19010317 | E78: -47 | F78: 0 | G78: -4.7 | I78: 17.03.1901
B79: 243 | C79: 100753 | D79: 19010318 | E79: -47 | F79: 0 | G79: -4.7 | I79: 18.03.1901
B80: 243 | C80: 100753 | D80: 19010319 | E80: -39 | F80: 0 | G80: -3.9 | I80: 19.03.1901
B81: 243 | C81: 100753 | D81: 19010320 | E81: -35 | F81: 0 | G81: -3.5 | I81: 20.03.1901
B82: 243 | C82: 100753 | D82: 19010321 | E82: -115 | F82: 0 | G82: -11.5 | I82: 21.03.1901
B83: 243 | C83: 100753 | D83: 19010322 | E83: -162 | F83: 0 | G83: -16.2 | I83: 22.03.1901
B84: 243 | C84: 100753 | D84: 19010323 | E84: -180 | F84: 0 | G84: -18 | I84: 23.03.1901
B85: 243 | C85: 100753 | D85: 19010324 | E85: -165 | F85: 0 | G85: -16.5 | I85: 24.03.1901
B86: 243 | C86: 100753 | D86: 19010325 | E86: -110 | F86: 0 | G86: -11 | I86: 25.03.1901
B87: 243 | C87: 100753 | D87: 19010326 | E87: -137 | F87: 0 | G87: -13.7 | I87: 26.03.1901
B88: 243 | C88: 100753 | D88: 19010327 | E88: -185 | F88: 0 | G88: -18.5 | I88: 27.03.1901
B89: 243 | C89: 100753 | D89: 19010328 | E89: -185 | F89: 0 | G89: -18.5 | I89: 28.03.1901
B90: 243 | C90: 100753 | D90: 19010329 | E90: -181 | F90: 0 | G90: -18.1 | I90: 29.03.1901
B91: 243 | C91: 100753 | D91: 19010330 | E91: -104 | F91: 0 | G91: -10.4 | I91: 30.03.1901
B92: 243 | C92: 100753 | D92: 19010331 | E92: -41 | F92: 0 | G92: -4.1 | I92: 31.03.1901
B93: 243 | C93: 100753 | D93: 19010401 | E93: -34 | F93: 0 | G93: -3.4 | I93: 01.04.1901
B94: 243 | C94: 100753 | D94: 19010402 | E94: -32 | F94: 0 | G94: -3.2 | I94: 02.04.1901
B95: 243 | C95: 100753 | D95: 19010403 | E95: -11 | F95: 0 | G95: -1.1 | I95: 03.04.1901
B96: 243 | C96: 100753 | D96: 19010404 | E96: 3 | F96: 0 | G96: 0.3 | I96: 04.04.1901
B97: 243 | C97: 100753 | D97: 19010405 | E97: -15 | F97: 0 | G97: -1.5 | I97: 05.04.1901
B98: 243 | C98: 100753 | D98: 19010406 | E98: -16 | F98: 0 | G98: -1.6 | I98: 06.04.1901
B99: 243 | C99: 100753 | D99: 19010407 | E99: 2 | F99: 0 | G99: 0.2 | I99: 07.04.1901
B100: 243 | C100: 100753 | D100: 19010408 | E100: 8 | F100: 0 | G100: 0.8 | I100: 08.04.1901
B101: 243 | C101: 100753 | D101: 19010409 | E101: 9 | F101: 0 | G101: 0.9 | I101: 09.04.1901
B102: 243 | C102: 100753 | D102: 19010410 | E102: -55 | F102: 0 | G102: -5.5 | I102: 10.04.1901
B103: 243 | C103: 100753 | D103: 19010411 | E103: -55 | F103: 0 | G103: -5.5 | I103: 11.04.1901
B104: 243 | C104: 100753 | D104: 19010412 | E104: -66 | F104: 0 | G104: -6.6 | I104: 12.04.1901
B105: 243 | C105: 100753 | D105: 19010413 | E105: -108 | F105: 0 | G105: -10.8 | I105: 13.04.1901
B106: 243 | C106: 100753 | D106: 19010414 | E106: -60 | F106: 0 | G106: -6 | I106: 14.04.1901
B107: 243 | C107: 100753 | D107: 19010415 | E107: -49 | F107: 0 | G107: -4.9 | I107: 15.04.1901
B108: 243 | C108: 100753 | D108: 19010416 | E108: -101 | F108: 0 | G108: -10.1 | I108: 16.04.1901
B109: 243 | C109: 100753 | D109: 19010417 | E109: -109 | F109: 0 | G109: -10.9 | I109: 17.04.1901
B110: 243 | C110: 100753 | D110: 19010418 | E110: -113 | F110: 0 | G110: -11.3 | I110: 18.04.1901
B111: 243 | C111: 100753 | D111: 19010419 | E111: -67 | F111: 0 | G111: -6.7 | I111: 19.04.1901
B112: 243 | C112: 100753 | D112: 19010420 | E112: -21 | F112: 0 | G112: -2.1 | I112: 20.04.1901
B113: 243 | C113: 100753 | D113: 19010421 | E113: 5 | F113: 0 | G113: 0.5 | I113: 21.04.1901
B114: 243 | C114: 100753 | D114: 19010422 | E114: 8 | F114: 0 | G114: 0.8 | I114: 22.04.1901
B115: 243 | C115: 100753 | D115: 19010423 | E115: -8 | F115: 0 | G115: -0.8 | I115: 23.04.1901
B116: 243 | C116: 100753 | D116: 19010424 | E116: -7 | F116: 0 | G116: -0.7 | I116: 24.04.1901
B117: 243 | C117: 100753 | D117: 19010425 | E117: -15 | F117: 0 | G117: -1.5 | I117: 25.04.1901
B118: 243 | C118: 100753 | D118: 19010426 | E118: -30 | F118: 0 | G118: -3 | I118: 26.04.1901
B119: 243 | C119: 100753 | D119: 19010427 | E119: -20 | F119: 0 | G119: -2 | I119: 27.04.1901
B120: 243 | C120: 100753 | D120: 19010428 | E120: -39 | F120: 0 | G120: -3.9 | I120: 28.04.1901
B121: 243 | C121: 100753 | D121: 19010429 | E121: -42 | F121: 0 | G121: -4.2 | I121: 29.04.1901
B122: 243 | C122: 100753 | D122: 19010430 | E122: -77 | F122: 0 | G122: -7.7 | I122: 30.04.1901
B123: 243 | C123: 100753 | D123: 19010501 | E123: -63 | F123: 0 | G123: -6.3 | I123: 01.05.1901
B124: 243 | C124: 100753 | D124: 19010502 | E124: -29 | F124: 0 | G124: -2.9 | I124: 02.05.1901
B125: 243 | C125: 100753 | D125: 19010503 | E125: -33 | F125: 0 | G125: -3.3 | I125: 03.05.1901
B126: 243 | C126: 100753 | D126: 19010504 | E126: -37 | F126: 0 | G126: -3.7 | I126: 04.05.1901
B127: 243 | C127: 100753 | D127: 19010505 | E127: -15 | F127: 0 | G127: -1.5 | I127: 05.05.1901
B128: 243 | C128: 100753 | D128: 19010506 | E128: -17 | F128: 0 | G128: -1.7 | I128: 06.05.1901
B129: 243 | C129: 100753 | D129: 19010507 | E129: -46 | F129: 0 | G129: -4.6 | I129: 07.05.1901
B130: 243 | C130: 100753 | D130: 19010508 | E130: -72 | F130: 0 | G130: -7.2 | I130: 08.05.1901
B131: 243 | C131: 100753 | D131: 19010509 | E131: -59 | F131: 0 | G131: -5.9 | I131: 09.05.1901
B132: 243 | C132: 100753 | D132: 19010510 | E132: -43 | F132: 0 | G132: =E132/10 -> -4.3 | I132: =RIGHT(D132,2) & "." & MID(D132,5,2) & "." & LEFT(D132,4) -> 10.05.1901
B133: 243 | C133: 100753 | D133: 19010511 | E133: -43 | F133: 0 | G133: -4.3 | I133: 11.05.1901
B134: 243 | C134: 100753 | D134: 19010512 | E134: 2 | F134: 0 | G134: 0.2 | I134: 12.05.1901
B135: 243 | C135: 100753 | D135: 19010513 | E135: 15 | F135: 0 | G135: 1.5 | I135: 13.05.1901
B136: 243 | C136: 100753 | D136: 19010514 | E136: 2 | F136: 0 | G136: 0.2 | I136: 14.05.1901
B137: 243 | C137: 100753 | D137: 19010515 | E137: -7 | F137: 0 | G137: -0.7 | I137: 15.05.1901
B138: 243 | C138: 100753 | D138: 19010516 | E138: -25 | F138: 0 | G138: -2.5 | I138: 16.05.1901
B139: 243 | C139: 100753 | D139: 19010517 | E139: -40 | F139: 0 | G139: -4 | I139: 17.05.1901
B140: 243 | C140: 100753 | D140: 19010518 | E140: -9 | F140: 0 | G140: -0.9 | I140: 18.05.1901
B141: 243 | C141: 100753 | D141: 19010519 | E141: 3 | F141: 0 | G141: 0.3 | I141: 19.05.1901
B142: 243 | C142: 100753 | D142: 19010520 | E142: 3 | F142: 0 | G142: 0.3 | I142: 20.05.1901
B143: 243 | C143: 100753 | D143: 19010521 | E143: 23 | F143: 0 | G143: 2.3 | I143: 21.05.1901
B144: 243 | C144: 100753 | D144: 19010522 | E144: 25 | F144: 0 | G144: 2.5 | I144: 22.05.1901
B145: 243 | C145: 100753 | D145: 19010523 | E145: 1 | F145: 0 | G145: 0.1 | I145: 23.05.1901
B146: 243 | C146: 100753 | D146: 19010524 | E146: 20 | F146: 0 | G146: 2 | I146: 24.05.1901
B147: 243 | C147: 100753 | D147: 19010525 | E147: 29 | F147: 0 | G147: 2.9 | I147: 25.05.1901
B148: 243 | C148: 100753 | D148: 19010526 | E148: 25 | F148: 0 | G148: 2.5 | I148: 26.05.1901
B149: 243 | C149: 100753 | D149: 19010527 | E149: 35 | F149: 0 | G149: 3.5 | I149: 27.05.1901
B150: 243 | C150: 100753 | D150: 19010528 | E150: 51 | F150: 0 | G150: 5.1 | I150: 28.05.1901
B151: 243 | C151: 100753 | D151: 19010529 | E151: 54 | F151: 0 | G151: 5.4 | I151: 29.05.1901
B152: 243 | C152: 100753 | D152: 19010530 | E152: 60 | F152: 0 | G152: 6 | I152: 30.05.1901
B153: 243 | C153: 100753 | D153: 19010531 | E153: 80 | F153: 0 | G153: 8 | I153: 31.05.1901
B154: 243 | C154: 100753 | D154: 19010601 | E154: 105 | F154: 0 | G154: 10.5 | I154: 01.06.1901
B155: 243 | C155: 100753 | D155: 19010602 | E155: 91 | F155: 0 | G155: 9.1 | I155: 02.06.1901
B156: 243 | C156: 100753 | D156: 19010603 | E156: 61 | F156: 0 | G156: 6.1 | I156: 03.06.1901
B157: 243 | C157: 100753 | D157: 19010604 | E157: 37 | F157: 0 | G157: 3.7 | I157: 04.06.1901
B158: 243 | C158: 100753 | D158: 19010605 | E158: 44 | F158: 0 | G158: 4.4 | I158: 05.06.1901
B159: 243 | C159: 100753 | D159: 19010606 | E159: 50 | F159: 0 | G159: 5 | I159: 06.06.1901
B160: 243 | C160: 100753 | D160: 19010607 | E160: 51 | F160: 0 | G160: 5.1 | I160: 07.06.1901
B161: 243 | C161: 100753 | D161: 19010608 | E161: 71 | F161: 0 | G161: 7.1 | I161: 08.06.1901
B162: 243 | C162: 100753 | D162: 19010609 | E162: 47 | F162: 0 | G162: 4.7 | I162: 09.06.1901
B163: 243 | C163: 100753 | D163: 19010610 | E163: 37 | F163: 0 | G163: 3.7 | I163: 10.06.1901
B164: 243 | C164: 100753 | D164: 19010611 | E164: 32 | F164: 0 | G164: 3.2 | I164: 11.06.1901
B165: 243 | C165: 100753 | D165: 19010612 | E165: 33 | F165: 0 | G165: 3.3 | I165: 12.06.1901
B166: 243 | C166: 100753 | D166: 19010613 | E166: 15 | F166: 0 | G166: 1.5 | I166: 13.06.1901
B167: 243 | C167: 100753 | D167: 19010614 | E167: 25 | F167: 0 | G167: 2.5 | I167: 14.06.1901
B168: 243 | C168: 100753 | D168: 19010615 | E168: -7 | F168: 0 | G168: -0.7 | I168: 15.06.1901
B169: 243 | C169: 100753 | D169: 19010616 | E169: -47 | F169: 0 | G169: -4.7 | I169: 16.06.1901
B170: 243 | C170: 100753 | D170: 19010617 | E170: -38 | F170: 0 | G170: -3.8 | I170: 17.06.1901
B171: 243 | C171: 100753 | D171: 19010618 | E171: -53 | F171: 0 | G171: -5.3 | I171: 18.06.1901
B172: 243 | C172: 100753 | D172: 19010619 | E172: -47 | F172: 0 | G172: -4.7 | I172: 19.06.1901
B173: 243 | C173: 100753 | D173: 19010620 | E173: -1 | F173: 0 | G173: -0.1 | I173: 20.06.1901
B174: 243 | C174: 100753 | D174: 19010621 | E174: 19 | F174: 0 | G174: 1.9 | I174: 21.06.1901
B175: 243 | C175: 100753 | D175: 19010622 | E175: 64 | F175: 0 | G175: 6.4 | I175: 22.06.1901
B176: 243 | C176: 100753 | D176: 19010623 | E176: 75 | F176: 0 | G176: 7.5 | I176: 23.06.1901
B177: 243 | C177: 100753 | D177: 19010624 | E177: 51 | F177: 0 | G177: 5.1 | I177: 24.06.1901
B178: 243 | C178: 100753 | D178: 19010625 | E178: 30 | F178: 0 | G178: 3 | I178: 25.06.1901
B179: 243 | C179: 100753 | D179: 19010626 | E179: 41 | F179: 0 | G179: 4.1 | I179: 26.06.1901
B180: 243 | C180: 100753 | D180: 19010627 | E180: 55 | F180: 0 | G180: 5.5 | I180: 27.06.1901
B181: 243 | C181: 100753 | D181: 19010628 | E181: 77 | F181: 0 | G181: 7.7 | I181: 28.06.1901
B182: 243 | C182: 100753 | D182: 19010629 | E182: 74 | F182: 0 | G182: 7.4 | I182: 29.06.1901
B183: 243 | C183: 100753 | D183: 19010630 | E183: 103 | F183: 0 | G183: 10.3 | I183: 30.06.1901
B184: 243 | C184: 100753 | D184: 19010701 | E184: 35 | F184: 0 | G184: 3.5 | I184: 01.07.1901
B185: 243 | C185: 100753 | D185: 19010702 | E185: 31 | F185: 0 | G185: 3.1 | I185: 02.07.1901
B186: 243 | C186: 100753 | D186: 19010703 | E186: 15 | F186: 0 | G186: 1.5 | I186: 03.07.1901
B187: 243 | C187: 100753 | D187: 19010704 | E187: 11 | F187: 0 | G187: 1.1 | I187: 04.07.1901
B188: 243 | C188: 100753 | D188: 19010705 | E188: 26 | F188: 0 | G188: 2.6 | I188: 05.07.1901
B189: 243 | C189: 100753 | D189: 19010706 | E189: 19 | F189: 0 | G189: 1.9 | I189: 06.07.1901
B190: 243 | C190: 100753 | D190: 19010707 | E190: 39 | F190: 0 | G190: 3.9 | I190: 07.07.1901
B191: 243 | C191: 100753 | D191: 19010708 | E191: 57 | F191: 0 | G191: 5.7 | I191: 08.07.1901
B192: 243 | C192: 100753 | D192: 19010709 | E192: 70 | F192: 0 | G192: 7 | I192: 09.07.1901
B193: 243 | C193: 100753 | D193: 19010710 | E193: 58 | F193: 0 | G193: 5.8 | I193: 10.07.1901
B194: 243 | C194: 100753 | D194: 19010711 | E194: 38 | F194: 0 | G194: 3.8 | I194: 11.07.1901
B195: 243 | C195: 100753 | D195: 19010712 | E195: 56 | F195: 0 | G195: 5.6 | I195: 12.07.1901
B196: 243 | C196: 100753 | D196: 19010713 | E196: 77 | F196: 0 | G196: =E196/10 -> 7.7 | I196: =RIGHT(D196,2) & "." & MID(D196,5,2) & "." & LEFT(D196,4) -> 13.07.1901
B197: 243 | C197: 100753 | D197: 19010714 | E197: 67 | F197: 0 | G197: 6.7 | I197: 14.07.1901
B198: 243 | C198: 100753 | D198: 19010715 | E198: 60 | F198: 0 | G198: 6 | I198: 15.07.1901
B199: 243 | C199: 100753 | D199: 19010716 | E199: 50 | F199: 0 | G199: 5 | I199: 16.07.1901
B200: 243 | C200: 100753 | D200: 19010717 | E200: 77 | F200: 0 | G200: 7.7 | I200: 17.07.1901
B201: 243 | C201: 100753 | D201: 19010718 | E201: 77 | F201: 0 | G201: 7.7 | I201: 18.07.1901
B202: 243 | C202: 100753 | D202: 19010719 | E202: 80 | F202: 0 | G202: 8 | I202: 19.07.1901
... 4298 more rows

Sheet Diagram

Sheet Diagram 2

Sheet Monatlicher Durchschnitt
E1: Monatsdurchschnitt | H1: Jahreddurchschnitt | K1: Durchschn. Maximum | N1: Durchschn. Minimum
E2: 31.01.1901 | F2: -8.977419355 | H2: 31.12.1901 | I2: -2.934246575 | K2: 31.07.1901 | L2: 5.1 | N2: 28.02.1901 | O2: -15.30357143
E3: 28.02.1901 | F3: -15.30357143 | H3: 31.12.1902 | I3: -2.355342466 | K3: 31.07.1902 | L3: 5.212903226 | N3: 31.12.1901 | O3: -7.919354839
E4: 31.03.1901 | F4: -10.06129032 | H4: 31.12.1903 | I4: -2.434246575 | K4: 31.08.1903 | L4: 4.835483871 | N4: 31.12.1902 | O4: -7.896774194
E5: 30.04.1901 | F5: -3.716666667 | H5: 31.12.1904 | I5: -1.822404372 | K5: 31.08.1904 | L5: 5.512903226 | N5: 29.02.1904 | O5: -10.09310345
E6: 31.05.1901 | F6: -0.3548387097 | H6: 31.12.1905 | I6: -2.940547945 | K6: 31.07.1905 | L6: 7.506451613 | N6: 31.01.1905 | O6: -11.23870968
E7: 30.06.1901 | F7: 3.65 | H7: 31.12.1906 | I7: -2.74630137 | K7: 31.08.1906 | L7: 5.670967742 | N7: 28.02.1906 | O7: -11.31071429
E8: 31.07.1901 | F8: 5.1 | H8: 31.12.1907 | I8: -2.495342466 | K8: 31.08.1907 | L8: 5.548387097 | N8: 31.12.1906 | O8: -12.30967742
E9: 31.08.1901 | F9: 4.7 | H9: 31.12.1908 | I9: -2.266393443 | K9: 30.06.1908 | L9: 4.966666667 | N9: 29.02.1908 | O9: -10.35172414
E10: 30.09.1901 | F10: 3.37 | H10: 31.12.1909 | I10: -3.337808219 | K10: 31.08.1909 | L10: 4.651612903 | N10: 28.02.1909 | O10: -12.975
E11: 31.10.1901 | F11: -0.8290322581 | H11: 31.12.1910 | I11: -3.040821918 | K11: 31.08.1910 | L11: 3.941935484 | N11: 31.01.1910 | O11: -9.096774194
E12: 30.11.1901 | F12: -5.766666667 | H12: 31.12.1911 | I12: -1.520547945 | K12: 31.07.1911 | L12: 7.74516129 | N12: 28.02.1911 | O12: -9.325
E13: 31.12.1901 | F13: -7.919354839 | H13: 31.12.1912 | I13: -2.92704918 | K13: 31.07.1912 | L13: 4.961290323 | N13: 31.01.1912 | O13: -7.393548387
E14: 31.01.1902 | F14: -7.306451613 | H14: 31.12.1913 | I14: -2.231232877 | K14: 31.08.1913 | L14: 3.632258065 | N14: 28.02.1913 | O14: -8.478571429
E15: 28.02.1902 | F15: -7.867857143 | H15: 31.12.1914 | I15: -2.327945205 | K15: 31.08.1914 | L15: 5.706451613 | N15: 31.01.1914 | O15: -9.483870968
E16: 31.03.1902 | F16: -7.3 | H16: 31.12.1915 | I16: -3.029315068 | K16: 30.06.1915 | L16: 4.82 | N16: 31.01.1915 | O16: -11.71612903
E17: 30.04.1902 | F17: -1.856666667 | H17: 31.12.1916 | I17: -2.565300546 | K17: 31.08.1916 | L17: 4.148387097 | N17: 29.02.1916 | O17: -9.444827586
E18: 31.05.1902 | F18: -5.022580645 | H18: 31.12.1917 | I18: -2.984931507 | K18: 30.06.1917 | L18: 5.586666667 | N18: 31.01.1917 | O18: -11.77741935
E19: 30.06.1902 | F19: 1.62 | H19: 31.12.1918 | I19: -1.899178082 | K19: 31.07.1918 | L19: 4.812903226 | N19: 31.12.1917 | O19: -10.4483871
E20: 31.07.1902 | F20: 5.212903226 | H20: 31.12.1919 | I20: -3.395342466 | K20: 31.08.1919 | L20: 5.961290323 | N20: 31.01.1919 | O20: -9.532258065
E21: 31.08.1902 | F21: 4.264516129 | H21: 31.12.1920 | I21: -0.6584699454 | K21: 31.07.1920 | L21: 5.448387097 | N21: 30.11.1919 | O21: -8.156666667
E22: 30.09.1902 | F22: 3.036666667 | H22: 31.12.1921 | I22: -0.9621917808 | K22: 31.08.1921 | L22: 5.725806452 | N22: 28.02.1921 | O22: -8.121428571
E23: 31.10.1902 | F23: -2.022580645 | H23: 31.12.1922 | I23: -2.797260274 | K23: 31.08.1922 | L23: 5.603225806 | N23: 31.01.1922 | O23: -10.64193548
E24: 30.11.1902 | F24: -3.373333333 | H24: 31.12.1923 | I24: -2.431780822 | K24: 31.07.1923 | L24: 7.367741935 | N24: 31.01.1923 | O24: -10.33870968
E25: 31.12.1902 | F25: -7.896774194 | H25: 31.12.1924 | I25: -1.920491803 | K25: 31.07.1924 | L25: 5.187096774 | N25: 29.02.1924 | O25: -11.2137931
E26: 31.01.1903 | F26: -7.477419355 | H26: 31.12.1925 | I26: -2.559452055 | K26: 31.08.1925 | L26: 4.687096774 | N26: 31.03.1925 | O26: -10.53548387
E27: 28.02.1903 | F27: -5.842857143 | H27: 31.12.1926 | I27: -1.74630137 | K27: 31.08.1926 | L27: 5.603225806 | N27: 31.01.1926 | O27: -9.419354839
E28: 31.03.1903 | F28: -6.693548387 | H28: 31.12.1927 | I28: -1.702191781 | K28: 31.07.1927 | L28: 5.464516129 | N28: 31.01.1927 | O28: -9.161290323
E29: 30.04.1903 | F29: -8.583333333 | H29: 31.12.1928 | I29: -1.839071038 | K29: 31.07.1928 | L29: 8.461290323 | N29: 31.01.1928 | O29: -8.248387097
E30: 31.05.1903 | F30: -0.6516129032 | H30: 31.12.1929 | I30: -2.127671233 | K30: 31.07.1929 | L30: 6.474193548 | N30: 28.02.1929 | O30: -12.37857143
E31: 30.06.1903 | F31: 2.143333333 | H31: 31.12.1930 | I31: -1.5 | K31: 30.06.1930 | L31: 6.586666667 | N31: 31.12.1929 | O31: -7.625806452
E32: 31.07.1903 | F32: 3.541935484 | H32: 31.12.1931 | I32: -2.678630137 | K32: 30.06.1931 | L32: 5.896666667 | N32: 28.02.1931 | O32: -11.82857143
E33: 31.08.1903 | F33: 4.835483871 | H33: 31.12.1932 | I33: -1.572677596 | K33: 31.08.1932 | L33: 8.487096774 | N33: 29.02.1932 | O33: -11.32068966
E34: 30.09.1903 | F34: 3.186666667 | H34: 31.12.1933 | I34: -2.673150685 | K34: 31.08.1933 | L34: 6.516129032 | N34: 28.02.1933 | O34: -10.42142857
E35: 31.10.1903 | F35: -0.7225806452 | H35: 31.12.1934 | I35: -0.9635616438 | K35: 31.07.1934 | L35: 6.583870968 | N35: 31.12.1933 | O35: -9.038709677
E36: 30.11.1903 | F36: -5.68 | H36: 31.12.1935 | I36: -2.630136986 | K36: 31.07.1935 | L36: 5.980645161 | N36: 31.01.1935 | O36: -11.82580645
E37: 31.12.1903 | F37: -7.570967742 | H37: 31.12.1936 | I37: -2.083606557 | K37: 31.08.1936 | L37: 5.409677419 | N37: 31.12.1935 | O37: -9.248387097
E38: 31.01.1904 | F38: -7.832258065 | H38: 31.12.1937 | I38: -2.174520548 | K38: 31.07.1937 | L38: 5.470967742 | N38: 31.03.1937 | O38: -8.690322581
E39: 29.02.1904 | F39: -10.09310345 | H39: 31.12.1938 | I39: -1.865479452 | K39: 31.08.1938 | L39: 5.167741935 | N39: 31.12.1937 | O39: -10.59354839
E40: 31.03.1904 | F40: -6.825806452 | H40: 31.12.1939 | I40: -2.340547945 | K40: 31.08.1939 | L40: 5.832258065 | N40: 31.03.1939 | O40: -11.28709677
E41: 30.04.1904 | F41: -2.736666667 | H41: 31.12.1940 | I41: -2.993989071 | K41: 31.07.1940 | L41: 3.670967742 | N41: 31.01.1940 | O41: -10.20322581
E42: 31.05.1904 | F42: 0.7967741935 | H42: 31.12.1941 | I42: -2.918082192 | K42: 31.07.1941 | L42: 6.2 | N42: 31.12.1940 | O42: -11.32903226
E43: 30.06.1904 | F43: 4.196666667 | H43: 31.12.1942 | I43: -1.815342466 | K43: 30.09.1942 | L43: 5.333333333 | N43: 31.01.1942 | O43: -13.91290323
E44: 31.07.1904 | F44: 7.425806452 | H44: 31.12.1943 | I44: -0.9789041096 | K44: 31.08.1943 | L44: 6.990322581 | N44: 31.01.1943 | O44: -7.858064516
E45: 31.08.1904 | F45: 5.512903226 | H45: 31.12.1944 | I45: -2.720765027 | K45: 31.08.1944 | L45: 9.322580645 | N45: 29.02.1944 | O45: -12.07241379
E46: 30.09.1904 | F46: 0.4533333333 | H46: 31.12.1945 | I46: -1.542739726 | K46: 31.07.1945 | L46: 7.158064516 | N46: 31.01.1945 | O46: -13.76451613
E47: 31.10.1904 | F47: -1 | H47: 31.12.1946 | I47: -1.400821918 | K47: 31.07.1946 | L47: 6.74516129 | N47: 28.02.1946 | O47: -8.957142857
E48: 30.11.1904 | F48: -6.346666667 | H48: 31.12.1947 | I48: -0.8408219178 | K48: 31.07.1947 | L48: 7.777419355 | N48: 31.01.1947 | O48: -11.4
E49: 31.12.1904 | F49: -5.861290323 | H49: 31.12.1948 | I49: -0.8363387978 | K49: 31.08.1948 | L49: 5.467741935 | N49: 31.12.1947 | O49: -10.01290323
E50: 31.01.1905 | F50: -11.23870968 | H50: 31.12.1949 | I50: -0.964109589 | K50: 31.07.1949 | L50: 6.367741935 | N50: 31.03.1949 | O50: -9.190322581
E51: 28.02.1905 | F51: -10.18571429 | H51: 31.12.1950 | I51: -1.251780822 | K51: 31.07.1950 | L51: 8.183870968 | N51: 31.01.1950 | O51: -7.951612903
E52: 31.03.1905 | F52: -6.961290323 | H52: 31.12.1951 | I52: -1.364383562 | K52: 31.07.1951 | L52: 6.238709677 | N52: 31.12.1950 | O52: -9.980645161
E53: 30.04.1905 | F53: -5.08 | H53: 31.12.1952 | I53: -2.402185792 | K53: 31.07.1952 | L53: 8.735483871 | N53: 29.02.1952 | O53: -11.04827586
E54: 31.05.1905 | F54: -1.358064516 | H54: 31.12.1953 | I54: -0.8690410959 | K54: 31.07.1953 | L54: 6.293548387 | N54: 31.01.1953 | O54: -10.19677419
E55: 30.06.1905 | F55: 3.616666667 | H55: 31.12.1954 | I55: -2.51369863 | K55: 31.08.1954 | L55: 3.990322581 | N55: 31.01.1954 | O55: -11.97419355
E56: 31.07.1905 | F56: 7.506451613 | H56: 31.12.1955 | I56: -2.319178082 | K56: 31.07.1955 | L56: 5.409677419 | N56: 28.02.1955 | O56: -10.76428571
E57: 31.08.1905 | F57: 5.129032258 | H57: 31.12.1956 | I57: -3.24726776 | K57: 31.07.1956 | L57: 5.306451613 | N57: 29.02.1956 | O57: -17.18275862
E58: 30.09.1905 | F58: 3.37 | H58: 31.12.1957 | I58: -1.346027397 | K58: 31.07.1957 | L58: 5.4 | N58: 31.01.1957 | O58: -8.296774194
E59: 31.10.1905 | F59: -7.887096774 | H59: 31.12.1958 | I59: -1.524109589 | K59: 31.08.1958 | L59: 6.761290323 | N59: 31.03.1958 | O59: -10.51612903
E60: 30.11.1905 | F60: -7.153333333 | H60: 31.12.1959 | I60: -0.7246575342 | K60: 31.07.1959 | L60: 7.322580645 | N60: 31.01.1959 | O60: -9.674193548
E61: 31.12.1905 | F61: -5.535483871 | H61: 31.12.1960 | I61: -2.191530055 | K61: 30.06.1960 | L61: 4.873333333 | N61: 31.01.1960 | O61: -9.603225806
E62: 31.01.1906 | F62: -8.987096774 | H62: 31.12.1961 | I62: -0.8504109589 | K62: 30.09.1961 | L62: 7.48 | N62: 31.01.1961 | O62: -7.696774194
E63: 28.02.1906 | F63: -11.31071429 | H63: 31.12.1962 | I63: -2.823561644 | K63: 31.08.1962 | L63: 6.912903226 | N63: 31.03.1962 | O63: -10.76774194
E64: 31.03.1906 | F64: -8.712903226 | H64: 31.12.1963 | I64: -2.150410959 | K64: 31.07.1963 | L64: 6.729032258 | N64: 31.01.1963 | O64: -13.45806452
E65: 30.04.1906 | F65: -5.383333333 | H65: 31.12.1964 | I65: -1.157650273 | K65: 31.07.1964 | L65: 6.525806452 | N65: 31.12.1963 | O65: -6.670967742
E66: 31.05.1906 | F66: -0.05483870968 | H66: 31.12.1965 | I66: -2.923287671 | K66: 31.08.1965 | L66: 3.94516129 | N66: 28.02.1965 | O66: -13.66785714
E67: 30.06.1906 | F67: 1.886666667 | H67: 31.12.1966 | I67: -2.19369863 | K67: 31.08.1966 | L67: 3.983870968 | N67: 31.01.1966 | O67: -10.33225806
E68: 31.07.1906 | F68: 5.512903226 | H68: 31.12.1967 | I68: -1.73890411 | K68: 31.07.1967 | L68: 7.274193548 | N68: 31.01.1967 | O68: -9.306451613
E69: 31.08.1906 | F69: 5.670967742 | H69: 31.12.1968 | I69: -2.006010929 | K69: 31.07.1968 | L69: 4.487096774 | N69: 31.01.1968 | O69: -10.61935484
E70: 30.09.1906 | F70: 1.33 | H70: 31.12.1969 | I70: -2.168767123 | K70: 31.07.1969 | L70: 6.348387097 | N70: 28.02.1969 | O70: -12.725
E71: 31.10.1906 | F71: 1.806451613 | H71: 31.12.1970 | I71: -2.595342466 | K71: 31.08.1970 | L71: 5.422580645 | N71: 28.02.1970 | O71: -11.51428571
E72: 30.11.1906 | F72: -3.046666667 | H72: 31.12.1971 | I72: -1.516164384 | K72: 31.08.1971 | L72: 7.05483871 | N72: 31.03.1971 | O72: -11.27096774
E73: 31.12.1906 | F73: -12.30967742 | H73: 31.12.1972 | I73: -1.991256831 | K73: 31.07.1972 | L73: 4.706451613 | N73: 31.01.1972 | O73: -8.006451613
E74: 31.01.1907 | F74: -9.922580645 | H74: 31.12.1973 | I74: -2.327671233 | K74: 31.08.1973 | L74: 7.325806452 | N74: 28.02.1973 | O74: -10.89642857
E75: 28.02.1907 | F75: -11.26071429 | H75: 31.12.1974 | I75: -2.669315068 | K75: 31.08.1974 | L75: 6.725806452 | N75: 31.12.1973 | O75: -8.309677419
E76: 31.03.1907 | F76: -9.467741935 | H76: 31.12.1975 | I76: -1.272876712 | K76: 31.08.1975 | L76: 5.990322581 | N76: 31.03.1975 | O76: -8.119354839
E77: 30.04.1907 | F77: -6.606666667 | H77: 31.12.1976 | I77: -1.905191257 | K77: 31.07.1976 | L77: 5.919354839 | N77: 31.01.1976 | O77: -9.096774194
E78: 31.05.1907 | F78: 0.3483870968 | H78: 31.12.1977 | I78: -1.628219178 | K78: 31.07.1977 | L78: 4.709677419 | N78: 31.12.1976 | O78: -8.764516129
E79: 30.06.1907 | F79: 2.77 | H79: 31.12.1978 | I79: -2.294246575 | K79: 31.08.1978 | L79: 3.525806452 | N79: 28.02.1978 | O79: -8.721428571
E80: 31.07.1907 | F80: 2.616129032 | H80: 31.12.1979 | I80: -2.269589041 | K80: 30.09.1979 | L80: 4.203333333 | N80: 31.01.1979 | O80: -11.29677419
E81: 31.08.1907 | F81: 5.548387097 | H81: 31.12.1980 | I81: -2.58442623 | K81: 31.08.1980 | L81: 6.112903226 | N81: 31.01.1980 | O81: -8.748387097
E82: 30.09.1907 | F82: 4.643333333 | H82: 31.12.1981 | I82: -2.18630137 | K82: 31.08.1981 | L82: 5.570967742 | N82: 31.01.1981 | O82: -10.22258065
E83: 31.10.1907 | F83: 0.9161290323 | H83: 31.12.1982 | I83: -0.9452054795 | K83: 31.07.1982 | L83: 7.54516129 | N83: 31.12.1981 | O83: -9.887096774
E84: 30.11.1907 | F84: -3.256666667 | H84: 31.12.1983 | I84: -0.5279452055 | K84: 31.07.1983 | L84: 10.06774194 | N84: 28.02.1983 | O84: -9.778571429
E85: 31.12.1907 | F85: -6.877419355 | H85: 31.12.1984 | I85: -2.286612022 | K85: 31.08.1984 | L85: 5.180645161 | N85: 29.02.1984 | O85: -10.9862069
E86: 31.01.1908 | F86: -6.741935484 | H86: 31.12.1985 | I86: -1.799452055 | K86: 31.08.1985 | L86: 5.803225806 | N86: 31.01.1985 | O86: -12.6516129
E87: 29.02.1908 | F87: -10.35172414 | H87: 31.12.1986 | I87: -1.434794521 | K87: 31.08.1986 | L87: 5.435483871 | N87: 28.02.1986 | O87: -11.56428571
E88: 31.03.1908 | F88: -9.980645161 | H88: 31.12.1987 | I88: -1.505479452 | K88: 30.09.1987 | L88: 6.216666667 | N88: 31.03.1987 | O88: -10.82903226
E89: 30.04.1908 | F89: -7.186666667 | H89: 31.12.1988 | I89: -1.059836066 | K89: 31.08.1988 | L89: 6.74516129 | N89: 31.03.1988 | O89: -9.332258065
E90: 31.05.1908 | F90: 1.758064516 | H90: 31.12.1989 | I90: 0.1769863014 | K90: 31.07.1989 | L90: 6.038709677 | N90: 31.12.1988 | O90: -5.85483871
E91: 30.06.1908 | F91: 4.966666667 | H91: 31.12.1990 | I91: -0.6665753425 | K91: 31.08.1990 | L91: 6.880645161 | N91: 31.01.1990 | O91: -4.732258065
E92: 31.07.1908 | F92: 4.687096774 | H92: 31.12.1991 | I92: -1.034246575 | K92: 31.08.1991 | L92: 7.961290323 | N92: 28.02.1991 | O92: -9.592857143
E93: 31.08.1908 | F93: 3.283870968 | H93: 31.12.1992 | I93: -0.143989071 | K93: 31.08.1992 | L93: 9.061290323 | N93: 29.02.1992 | O93: -6.417241379
E94: 30.09.1908 | F94: 1.823333333 | H94: 31.12.1993 | I94: -1.043013699 | K94: 31.08.1993 | L94: 6.574193548 | N94: 31.03.1993 | O94: -7.277419355
E95: 31.10.1908 | F95: 2.325806452 | H95: 31.12.1994 | I95: -0.1238356164 | K95: 31.07.1994 | L95: 8.980645161 | N95: 28.02.1994 | O95: -7.828571429
E96: 30.11.1908 | F96: -4.53 | H96: 31.12.1995 | I96: -1.258356164 | K96: 31.07.1995 | L96: 8.841935484 | N96: 31.01.1995 | O96: -9.119354839
E97: 31.12.1908 | F97: -7.638709677 | H97: 31.12.1996 | I97: -1.442622951 | K97: 30.06.1996 | L97: 5.096666667 | N97: 29.02.1996 | O97: -9.986206897
E98: 31.01.1909 | F98: -9.025806452 | H98: 31.12.1997 | I98: -0.1046575342 | K98: 31.08.1997 | L98: 7.851612903 | N98: 30.04.1997 | O98: -5.466666667
E99: 28.02.1909 | F99: -12.975 | H99: 31.12.1998 | I99: -1.112328767 | K99: 31.08.1998 | L99: 7.083870968 | N99: 31.03.1998 | O99: -6.65483871
E100: 31.03.1909 | F100: -9.987096774 | H100: 31.12.1999 | I100: -1.034794521 | K100: 31.07.1999 | L100: 6.322580645 | N100: 28.02.1999 | O100: -9.967857143
E101: 30.04.1909 | F101: -3.096666667 | H101: 31.12.2000 | I101: -0.6103825137 | K101: 30.06.2000 | L101: 5.68 | N101: 31.01.2000 | O101: -7.877419355
E102: 31.05.1909 | F102: -0.8161290323 | H102: 31.12.2001 | I102: -1.205753425 | K102: 31.08.2001 | L102: 7.729032258 | N102: 28.02.2001 | O102: -7.328571429
E103: 30.06.1909 | F103: 1.1 | H103: 31.12.2002 | I103: -0.5504109589 | K103: 30.06.2002 | L103: 6.283333333 | N103: 31.12.2001 | O103: -9.135483871
E104: 31.07.1909 | F104: 2.393548387 | H104: 31.12.2003 | I104: -0.1939726027 | K104: 31.08.2003 | L104: 9.838709677 | N104: 28.02.2003 | O104: -9.3
E105: 31.08.1909 | F105: 4.651612903 | H105: 31.12.2004 | I105: -1.428961749 | K105: 31.08.2004 | L105: 6.419354839 | N105: 31.01.2004 | O105: -9.206451613
E106: 30.09.1909 | F106: 1.486666667 | H106: 31.12.2005 | I106: -1.599452055 | K106: 31.07.2005 | L106: 5.496774194 | N106: 28.02.2005 | O106: -12.25714286
E107: 31.10.1909 | F107: 0.07741935484 | H107: 31.12.2006 | I107: -0.2134246575 | K107: 31.07.2006 | L107: 9.874193548 | N107: 31.12.2005 | O107: -9.261290323
E108: 30.11.1909 | F108: -7.236666667 | H108: 31.12.2007 | I108: -0.4854794521 | K108: 31.08.2007 | L108: 5.596774194 | N108: 31.03.2007 | O108: -5.629032258
E109: 31.12.1909 | F109: -7.377419355 | H109: 31.12.2008 | I109: -0.8857923497 | K109: 31.08.2008 | L109: 6.377419355 | N109: 31.03.2008 | O109: -7.967741935
E110: 31.01.1910 | F110: -9.096774194 | H110: 31.12.2009 | I110: -0.9317808219 | K110: 31.08.2009 | L110: 8.496774194 | N110: 28.02.2009 | O110: -9.682142857
E111: 28.02.1910 | F111: -9.064285714 | H111: 31.12.2010 | I111: -2.079726027 | K111: 31.07.2010 | L111: 7.867741935 | N111: 31.01.2010 | O111: -9.629032258
E112: 31.03.1910 | F112: -7.522580645 | H112: 31.12.2011 | I112: 0.3506849315 | K112: 31.08.2011 | L112: 8.009677419 | N112: 31.12.2010 | O112: -9.803225806
E113: 30.04.1910 | F113: -5.373333333 | H113: 31.12.2012 | I113: -0.631147541 | K113: 31.08.2012 | L113: 8.393548387 | N113: 29.02.2012 | O113: -11.47586207
E114: 31.05.1910 | F114: -1.983870968 | H114: 31.12.2013 | I114: -1.020547945 | K114: 31.07.2013 | L114: 8.090322581 | N114: 28.02.2013 | O114: -11.67857143
E115: 30.06.1910 | F115: 3.176666667 | H115: 31.12.2014 | I115: -0.0597260274 | K115: 31.07.2014 | L115: 6.016129032 | N115: 28.02.2014 | O115: -6.2
E116: 31.07.1910 | F116: 2.683870968 | H116: 31.12.2015 | I116: 0.221369863 | K116: 31.07.2015 | L116: 9.458064516 | N116: 28.02.2015 | O116: -7.946428571
E117: 31.08.1910 | F117: 3.941935484 | K117: 31.08.2016 | L117: 7.235483871 | N117: 31.03.2016 | O117: -6.951612903
E118: 30.09.1910 | F118: 0.48 | K118: 31.08.2017 | L118: 8.364516129 | N118: 28.02.2017 | O118: -5.007142857
E119: 31.10.1910 | F119: 0.4806451613
E120: 30.11.1910 | F120: -8.286666667
E121: 31.12.1910 | F121: -6.438709677
E122: 31.01.1911 | F122: -8.135483871
E123: 28.02.1911 | F123: -9.325
E124: 31.03.1911 | F124: -7.716129032
E125: 30.04.1911 | F125: -5.69
E126: 31.05.1911 | F126: -0.3612903226
E127: 30.06.1911 | F127: 2.506666667
E128: 31.07.1911 | F128: 7.74516129
E129: 31.08.1911 | F129: 7.548387097
E130: 30.09.1911 | F130: 4.65
E131: 31.10.1911 | F131: -0.2419354839
E132: 30.11.1911 | F132: -3.643333333
E133: 31.12.1911 | F133: -6.212903226
E134: 31.01.1912 | F134: -7.393548387
E135: 29.02.1912 | F135: -5.824137931
E136: 31.03.1912 | F136: -6.193548387
E137: 30.04.1912 | F137: -6.296666667
E138: 31.05.1912 | F138: -0.006451612903
E139: 30.06.1912 | F139: 2.883333333
E140: 31.07.1912 | F140: 4.961290323
E141: 31.08.1912 | F141: 1.467741935
E142: 30.09.1912 | F142: -3.25
E143: 31.10.1912 | F143: -2.090322581
E144: 30.11.1912 | F144: -8.693333333
E145: 31.12.1912 | F145: -4.993548387
E146: 31.01.1913 | F146: -7.267741935
E147: 28.02.1913 | F147: -8.478571429
E148: 31.03.1913 | F148: -4.880645161
E149: 30.04.1913 | F149: -4.916666667
E150: 31.05.1913 | F150: -0.6903225806
E151: 30.06.1913 | F151: 2.22
E152: 31.07.1913 | F152: 1.274193548
E153: 31.08.1913 | F153: 3.632258065
E154: 30.09.1913 | F154: 2.233333333
E155: 31.10.1913 | F155: 1.793548387
E156: 30.11.1913 | F156: -3.366666667
E157: 31.12.1913 | F157: -8.767741935
E158: 31.01.1914 | F158: -9.483870968
E159: 28.02.1914 | F159: -4.467857143
E160: 31.03.1914 | F160: -7.535483871
E161: 30.04.1914 | F161: -1.986666667
E162: 31.05.1914 | F162: -1.625806452
E163: 30.06.1914 | F163: 1.276666667
E164: 31.07.1914 | F164: 3.164516129
E165: 31.08.1914 | F165: 5.706451613
E166: 30.09.1914 | F166: 1.493333333
E167: 31.10.1914 | F167: -1.916129032
E168: 30.11.1914 | F168: -5.996666667
E169: 31.12.1914 | F169: -6.638709677
E170: 31.01.1915 | F170: -11.71612903
E171: 28.02.1915 | F171: -10.05714286
E172: 31.03.1915 | F172: -8.603225806
E173: 30.04.1915 | F173: -5.496666667
E174: 31.05.1915 | F174: 2.451612903
E175: 30.06.1915 | F175: 4.82
E176: 31.07.1915 | F176: 3.977419355
E177: 31.08.1915 | F177: 2.916129032
E178: 30.09.1915 | F178: 1.426666667
E179: 31.10.1915 | F179: -3.825806452
E180: 30.11.1915 | F180: -7.543333333
E181: 31.12.1915 | F181: -5.209677419
E182: 31.01.1916 | F182: -6.703225806
E183: 29.02.1916 | F183: -9.444827586
E184: 31.03.1916 | F184: -6.741935484
E185: 30.04.1916 | F185: -4.053333333
E186: 31.05.1916 | F186: 0.6096774194
E187: 30.06.1916 | F187: 0.36
E188: 31.07.1916 | F188: 3.85483871
E189: 31.08.1916 | F189: 4.148387097
E190: 30.09.1916 | F190: 0.52
E191: 31.10.1916 | F191: -1.564516129
E192: 30.11.1916 | F192: -4.69
E193: 31.12.1916 | F193: -7.44516129
E194: 31.01.1917 | F194: -11.77741935
E195: 28.02.1917 | F195: -9.342857143
E196: 31.03.1917 | F196: -9.822580645
E197: 30.04.1917 | F197: -8.723333333
E198: 31.05.1917 | F198: 3.138709677
E199: 30.06.1917 | F199: 5.586666667
E200: 31.07.1917 | F200: 5.103225806
... 1204 more rows
